bitfinex/quotes_ETHUSD_20240701
["timestamp","ask_amount","ask_price","bid_price","bid_amount"]
[1719858317669,0.04678231,3490.8,3490.4,0.1204875]
[1719858317898,2.447,3491.0,3490.4,0.1204875]
[1719858318109,0.04678123,3490.7,3490.4,0.1204875]
[1719858318266,2.447,3491.0,3490.4,0.1204875]
[1719858318475,0.04678339,3490.9,3490.4,0.1204875]
[1719858318693,0.07160998,3491.7,3490.4,0.1204875]
[1719858319206,0.04678124,3491.6,3490.4,0.1204875]
[1719858319408,0.07160998,3491.5,3490.4,0.1204875]
[1719858319777,0.04677908,3491.4,3490.4,0.1204875]
[1719858319974,0.04677908,3491.4,3490.5,0.61204875]
[1719858324012,0.04677908,3491.4,3490.4,0.1204875]
[1719858324320,0.11838916,3491.4,3490.4,0.1204875]
[1719858326407,2.4218,3491.3,3490.4,0.1204875]
[1719858326806,0.04677692,3491.2,3490.4,0.1204875]
[1719858327408,0.11838707,3491.2,3490.4,0.1204875]
[1719858327735,0.25401871,3491.1,3490.4,0.1204875]
[1719858328078,0.04677477,3491.0,3490.4,0.1204875]
[1719858328284,0.11839172,3491.0,3490.4,0.1204875]
[1719858330716,1.714,3490.6,3490.4,0.1204875]
[1719858331013,0.07162775,3490.5,3490.4,0.1204875]
[1719858331218,0.2969462,3490.5,3490.4,0.1204875]
[1719858333385,3.2475462,3490.5,3490.4,0.1204875]
[1719858334722,3.2475462,3490.5,3488.5,1.18931531]
[1719858334723,2.86513,3490.3,3488.5,1.18931531]
[1719858334922,2.4824,3490.4,3488.5,1.18931531]
[1719858334923,1.714,3489.3,3488.5,1.18931531]
[1719858335145,0.07165332,3489.2,3488.5,1.18931531]
[1719858335287,0.11805807,3489.2,3488.5,4.18931531]
[1719858335488,0.04640475,3489.2,3488.5,4.18931531]
[1719858335688,0.04640475,3489.2,3488.5,1.18931531]
[1719858336223,0.11805807,3489.2,3488.5,1.18931531]
[1719858338005,0.04640475,3489.2,3488.6,0.0283197]
[1719858338323,0.04640475,3489.2,3488.5,1.18931531]
[1719858339032,0.1180583,3489.2,3488.5,1.18931531]
[1719858339232,0.54950413,3489.2,3488.5,1.18931531]
[1719858339433,1.714,3489.0,3488.3,7.29]
[1719858339608,0.07166142,3488.9,3488.3,7.29]
[1719858339934,0.07166142,3488.9,3487.3,2.86753]
[1719858339935,1.714,3488.6,3487.4,2.4158]
[1719858340142,0.07167033,3488.5,3487.5,0.54158]
[1719858340304,0.04596695,3488.5,3487.5,0.54158]
[1719858340500,1.78567221,3488.6,3487.5,0.54158]
[1719858340501,1.73163916,3488.6,3487.5,0.54158]
[1719858341533,1.65996695,3488.6,3487.5,0.54158]
[1719858341725,1.65996695,3488.6,3487.6,0.354158]
[1719858341913,1.65996695,3488.6,3487.6,3.354158]
[1719858342237,0.07167033,3488.7,3487.7,2.86721]
[1719858343117,4.026,3488.6,3487.6,0.354158]
[1719858343317,0.0716685,3488.5,3487.6,0.354158]
[1719858343636,0.11601856,3488.5,3487.7,0.9221608]
[1719858343838,4.026,3488.6,3487.7,0.9221608]
[1719858344604,4.026,3488.6,3487.8,0.02834975]
[1719858344828,4.026,3488.6,3487.7,0.9221608]
[1719858345004,0.11599208,3488.5,3487.7,0.9221608]
[1719858345200,0.0716685,3488.5,3487.8,1.06342689]
[1719858346026,4.026,3488.6,3487.9,0.02834979]
[1719858346423,2.312,3488.6,3487.9,0.02834979]
[1719858347867,2.312,3488.6,3487.8,1.06342689]
[1719858347868,0.07166847,3488.5,3487.8,1.06342689]
[1719858348447,2.312,3488.6,3487.9,0.02834973]
[1719858348654,2.312,3488.6,3488.0,0.20139374]
[1719858348960,0.0443287,3488.5,3488.1,0.02833602]
[1719858349459,0.07166192,3488.9,3488.0,0.20139374]
[1719858349622,0.07166192,3488.9,3487.9,0.02833398]
[1719858349623,0.25679619,3488.8,3487.1,3.0]
[1719858349824,0.071674,3488.7,3487.6,3.02836078]
[1719858350759,0.07167011,3488.9,3487.6,3.02836078]
[1719858351137,0.04434022,3488.8,3487.6,3.02836078]
[1719858351459,0.07167005,3488.8,3487.6,5.89563078]
[1719858352044,0.07167005,3488.8,3487.6,5.86727]
[1719858352238,0.07167005,3488.8,3487.7,1.902457]
[1719858352834,2.4963,3489.0,3488.0,3.0]
[1719858353069,2.4963,3489.0,3488.1,0.02833031]
[1719858353579,0.07166042,3488.9,3488.1,0.02833031]
[1719858354151,0.07166042,3488.9,3488.1,3.0]
[1719858354345,0.07166042,3488.9,3488.2,0.43728869]
[1719858357380,0.07166042,3488.9,3488.1,3.0]
[1719858358423,0.07166494,3488.9,3488.2,0.02834122]
[1719858358924,3.0,3489.9,3488.1,5.3145]
[1719858358925,0.07165919,3489.2,3488.1,5.3145]
[1719858359108,0.32699511,3489.2,3488.1,4.118151]
[1719858359413,0.04289946,3489.1,3488.1,4.118151]
[1719858359808,0.07165919,3489.2,3488.1,4.118151]
[1719858359993,0.07165288,3489.3,3488.1,4.118151]
[1719858360601,2.436,3489.1,3488.1,4.118151]
[1719858360782,2.436,3489.1,3488.1,3.0]
[1719858360783,0.07166441,3489.0,3488.1,3.0]
[1719858361088,0.04296128,3488.9,3488.1,3.0]
[1719858361285,0.07166455,3488.8,3488.1,3.0]
[1719858361490,0.07166455,3488.8,3487.7,3.0]
[1719858361698,0.07166455,3488.8,3487.8,1.35763989]
[1719858362188,0.07166455,3488.8,3487.7,3.0]
[1719858362189,2.487,3488.6,3487.7,3.0]
[1719858362390,0.07167113,3488.5,3487.7,3.0]
[1719858362584,0.07167113,3488.5,3487.6,3.0]
[1719858363498,2.3526,3488.3,3487.6,3.0]
[1719858363692,2.3526,3488.3,3487.0,7.4104875]
[1719858363693,0.11460982,3488.2,3487.0,7.4104875]
[1719858363888,0.47833854,3488.2,3487.0,7.4104875]
[1719858364524,1.714,3488.0,3487.0,0.1204875]
[1719858364726,0.07169026,3487.9,3487.0,0.1204875]
[1719858364894,0.11457172,3487.9,3487.0,0.1204875]
[1719858365623,2.3032,3487.8,3487.0,0.1204875]
[1719858365789,0.48486746,3487.7,3487.0,0.1204875]
[1719858365985,0.52774991,3487.7,3487.0,0.1204875]
[1719858367229,2.3012,3487.5,3487.0,0.1204875]
[1719858367426,0.07170652,3487.4,3487.0,0.1204875]
[1719858367612,0.55,3487.3,3487.0,0.1204875]
[1719858367799,0.07170184,3487.2,3487.0,0.1204875]
[1719858368126,2.266,3487.1,3487.0,0.1204875]
[1719858368328,3.28043188,3487.1,3487.0,0.1204875]
[1719858368499,3.32299442,3487.1,3487.0,0.1204875]
[1719858372215,2.3682,3487.0,3485.5,3.0]
[1719858372419,1.05699442,3487.1,3485.5,3.0]
[1719858372420,2.3682,3486.6,3485.5,3.0]
[1719858372608,1.02993711,3486.5,3485.4,7.29]
[1719858372808,1.714,3486.3,3485.4,7.29]
[1719858373010,1.714,3486.3,3484.9,12.5]
[1719858373011,0.07172717,3486.2,3484.6,7.29]
[1719858373327,0.55,3486.1,3484.6,7.29]
[1719858373495,0.07172717,3486.0,3484.6,7.29]
[1719858373700,0.07172717,3486.0,3484.7,1.28559439]
[1719858374328,0.55,3486.1,3484.7,4.28559439]
[1719858374329,4.09082929,3485.9,3484.7,4.28559439]
[1719858374516,0.55,3485.8,3484.7,4.28559439]
[1719858374720,0.1141368,3485.7,3484.7,1.28559439]
[1719858374930,0.07173439,3485.7,3484.7,1.28559439]
[1719858376030,0.07173439,3485.7,3484.3,3.0]
[1719858376031,1.714,3485.5,3484.3,3.0]
[1719858376232,0.07173794,3485.4,3484.4,0.02851642]
[1719858376418,0.11401856,3485.4,3484.4,0.02851642]
[1719858377452,0.11401856,3485.4,3484.2,3.0]
[1719858377956,0.07173794,3485.4,3484.2,3.0]
[1719858378160,0.07173794,3485.4,3484.3,1.61602]
[1719858378323,2.8198,3485.3,3484.0,7.29]
[1719858378519,0.11372082,3485.2,3484.0,7.29]
[1719858378734,1.714,3485.0,3484.0,7.29]
[1719858378958,0.11372595,3484.9,3484.0,7.29]
[1719858380069,0.04197734,3484.9,3484.1,0.02854182]
[1719858380438,2.2698,3485.3,3484.3,2.87001]
[1719858380757,2.4021,3485.8,3484.4,5.89841783]
[1719858380920,2.4021,3485.8,3484.5,0.87684278]
[1719858380921,0.07173237,3485.7,3484.5,0.87684278]
[1719858381124,0.1135506,3485.7,3484.5,0.87684278]
[1719858381736,0.1135506,3485.7,3484.1,3.0]
[1719858382137,0.55,3485.6,3484.1,3.0]
[1719858382453,2.4021,3485.4,3484.1,3.0]
[1719858382637,0.07174376,3485.3,3484.1,3.0]
[1719858382966,0.07174376,3485.3,3484.0,7.29]
[1719858382967,1.78574376,3485.2,3484.0,7.29]
[1719858383157,0.42297591,3485.1,3484.0,7.29]
[1719858383462,0.07174664,3485.0,3484.0,7.29]
[1719858383764,0.07174664,3485.0,3483.5,2.9911575]
[1719858383765,2.4576,3484.7,3483.5,7.4104875]
[1719858384062,0.07175498,3484.6,3483.6,0.02855732]
[1719858384260,0.07175498,3484.6,3483.7,0.74390448]
[1719858384560,0.07175498,3484.6,3483.6,0.02855732]
[1719858384768,0.07175498,3484.6,3483.5,7.4104875]
[1719858385335,0.07175498,3484.6,3483.5,0.1204875]
[1719858385336,2.497,3484.5,3483.5,0.1204875]
[1719858385536,0.11354754,3484.4,3483.5,0.1204875]
[1719858385761,1.82754754,3484.4,3483.5,0.1204875]
[1719858385958,1.03745475,3484.3,3483.5,0.1204875]
[1719858386263,0.07176615,3484.2,3483.5,0.1204875]
[1719858386566,0.11354195,3484.2,3483.5,0.1204875]
[1719858387271,2.4293,3484.1,3483.5,0.1204875]
[1719858387465,0.62177315,3484.0,3483.5,0.1204875]
[1719858387645,0.3092849,3483.9,3483.5,0.1204875]
[1719858387866,0.07177305,3483.8,3483.5,0.1204875]
[1719858388045,0.11339354,3483.8,3483.5,0.1204875]
[1719858388259,2.41377306,3483.7,3483.5,0.1204875]
[1719858388561,0.0414847,3483.6,3483.5,0.1204875]
[1719858389161,0.07176631,3484.0,3483.5,0.1204875]
[1719858389341,0.04146294,3483.6,3483.5,0.1204875]
[1719858389665,2.3073,3484.1,3483.5,0.1204875]
[1719858389887,0.04146145,3483.6,3483.5,0.1204875]
[1719858390035,2.3073,3484.1,3483.5,0.1204875]
[1719858390932,0.07176116,3484.0,3483.5,0.1204875]
[1719858391184,2.3073,3484.1,3483.5,0.1204875]
[1719858391348,1.714,3483.9,3483.5,0.1204875]
[1719858391552,2.3073,3484.1,3483.5,0.1204875]
[1719858391750,0.07176999,3484.9,3483.5,0.1204875]
[1719858391751,0.04151249,3483.8,3483.5,0.1204875]
[1719858391949,0.07175929,3484.7,3483.6,0.02856766]
[1719858392167,0.32760522,3484.7,3483.5,0.1204875]
[1719858392486,0.32760522,3484.7,3483.5,0.12692162]
[1719858392636,0.55,3484.6,3483.5,0.12692162]
[1719858392839,0.07176116,3484.5,3483.5,0.12692162]
[1719858393150,0.11328018,3484.5,3483.5,0.12692162]
[1719858394387,2.55846114,3484.4,3483.5,0.12692162]
[1719858394539,2.57899802,3484.3,3483.5,0.12692162]
[1719858394863,0.11328166,3484.2,3483.5,0.12692162]
[1719858395037,0.55,3484.1,3483.5,0.12692162]
[1719858395238,0.07177006,3484.0,3483.5,0.12692162]
[1719858395437,0.11328124,3484.0,3483.5,0.12692162]
[1719858396082,0.04151118,3484.0,3483.5,0.12692162]
[1719858396373,2.4867,3484.4,3483.5,0.12692162]
[1719858396374,2.3023,3484.9,3483.6,0.02857479]
[1719858396534,0.07175616,3484.8,3483.6,0.02857479]
[1719858396739,2.3023,3484.9,3483.6,0.02857479]
[1719858396740,0.07175616,3484.7,3483.6,0.02857479]
[1719858396977,0.11193256,3484.7,3483.6,0.02857479]
[1719858397274,0.07175616,3484.7,3483.6,0.02857479]
[1719858397505,0.07175616,3484.7,3483.6,0.02855829]
[1719858397794,0.07175616,3484.7,3483.5,0.12692162]
[1719858397795,0.07175616,3484.7,3483.5,2.99758162]
[1719858398011,0.07175616,3484.7,3483.6,1.18684016]
[1719858398218,0.07175616,3484.7,3483.6,4.18684016]
[1719858399709,0.07175616,3484.7,3483.6,1.18684016]
[1719858399887,0.07175616,3484.7,3483.7,0.02854435]
[1719858400609,0.07174958,3485.3,3483.7,3.02854435]
[1719858400807,0.62174669,3485.2,3483.8,4.04982904]
[1719858400987,0.66194869,3485.2,3483.8,4.04982904]
[1719858401336,0.66194869,3485.2,3484.1,2.87013]
[1719858401337,0.040202,3485.2,3484.1,2.87013]
[1719858401616,0.07173455,3485.6,3484.2,3.684633]
[1719858402065,0.07173455,3485.6,3484.2,0.684633]
[1719858402710,0.58898338,3485.5,3484.2,0.684633]
[1719858402909,0.11072461,3485.5,3484.3,0.02852369]
[1719858403141,0.03898338,3485.5,3484.4,3.50373108]
[1719858403296,0.07174123,3485.6,3484.5,3.0285028]
[1719858404211,2.3842,3485.9,3484.5,3.0]
[1719858404212,0.07173226,3485.8,3484.5,3.0]
[1719858404543,2.3842,3485.9,3484.4,0.63382108]
[1719858404544,0.31732566,3485.7,3484.4,0.63382108]
[1719858405054,0.03909819,3485.6,3484.4,0.63382108]
[1719858405226,0.07173945,3485.5,3484.4,0.63382108]
[1719858407094,0.07173945,3485.5,3484.5,3.0]
[1719858407289,0.07173945,3485.5,3484.6,0.36338211]
[1719858408896,0.07173945,3485.5,3484.4,0.63382108]
[1719858408897,2.3855,3485.4,3484.4,0.63382108]
[1719858409098,2.3855,3485.4,3484.2,3.684633]
[1719858409099,0.11088402,3485.3,3484.2,3.684633]
[1719858409299,0.07173943,3485.2,3484.2,3.684633]
[1719858410456,0.07173943,3485.2,3484.2,3.0]
[1719858410816,0.03914321,3485.1,3484.2,3.0]
[1719858411019,0.03914321,3485.1,3484.1,3.0]
[1719858411020,2.2933,3484.9,3484.1,3.0]
[1719858411276,0.07175365,3484.8,3483.5,0.12692162]
[1719858411574,0.0717549,3484.7,3483.7,3.0]
[1719858411854,0.30826039,3484.7,3483.7,3.0]
[1719858412355,0.0717549,3484.7,3483.7,3.0]
[1719858412530,0.07174938,3484.8,3483.8,3.0]
[1719858413238,0.07174938,3484.8,3483.9,0.02853477]
[1719858413755,0.07174938,3484.8,3483.9,2.89885477]
[1719858413956,0.07174938,3484.8,3484.1,3.0]
[1719858414156,0.07174558,3484.8,3484.1,3.02853475]
[1719858414654,3.0758456,3484.7,3483.5,0.12692162]
[1719858414870,2.5258456,3484.7,3483.5,0.12692162]
[1719858415037,1.06807237,3484.6,3483.5,0.12692162]
[1719858415233,0.07176003,3484.5,3483.5,0.12692162]
[1719858415662,0.03908376,3484.4,3483.5,0.12692162]
[1719858415963,0.07176045,3484.3,3483.5,0.12692162]
[1719858416167,0.07176458,3484.2,3483.5,0.12692162]
[1719858416367,0.1107576,3484.2,3483.5,0.12692162]
[1719858416580,2.4289,3484.1,3483.5,0.12692162]
[1719858416859,0.32573033,3484.0,3483.5,0.12692162]
[1719858417064,0.36468564,3484.0,3483.5,0.12692162]
[1719858417436,0.11071988,3484.0,3483.5,0.12692162]
[1719858418780,0.49703512,3483.9,3483.5,0.12692162]
[1719858418925,0.56883138,3483.8,3483.5,0.12692162]
[1719858419226,0.11073703,3483.7,3483.5,0.12692162]
[1719858419541,0.55,3483.6,3483.5,0.12692162]
[1719858419729,0.58895755,3483.6,3483.5,0.12692162]
[1719858419928,3.00925755,3483.6,3483.5,0.12692162]
[1719858420134,3.81446523,3483.6,3483.5,0.12692162]
[1719858420341,3.31736075,3483.6,3483.5,0.12692162]
[1719858420771,5.90222297,3483.6,3483.5,0.12692162]
[1719858421066,3.31736075,3483.6,3483.5,0.12692162]
[1719858421242,5.90233844,3483.6,3483.5,0.12692162]
[1719858423280,3.81444177,3483.6,3483.5,0.12692162]
[1719858423561,7.6879705,3483.6,3483.5,0.12692162]
[1719858423728,7.68814425,3483.6,3483.5,0.12692162]
[1719858424329,5.97414425,3483.6,3483.5,0.12692162]
[1719858424644,10.71414425,3483.6,3483.5,0.12692162]
[1719858424832,13.58473425,3483.6,3483.5,0.12692162]
[1719858425032,13.64724091,3483.6,3483.5,0.12692162]
[1719858425437,7.75065091,3483.6,3483.5,0.12692162]
[1719858425632,3.026,3483.4,3482.0,3.0]
[1719858425837,1.37586632,3483.0,3481.6,3.0]
[1719858426147,1.15483759,3482.9,3481.6,3.0]
[1719858426334,6.04428147,3482.8,3481.4,3.0]
[1719858426534,1.37578515,3482.3,3481.4,3.0]
[1719858426781,2.69312303,3482.7,3481.4,4.029]
[1719858426782,1.98063778,3482.2,3481.4,4.029]
[1719858427073,0.07180202,3482.1,3481.4,4.029]
[1719858427272,0.07180202,3482.1,3481.4,1.029]
[1719858427769,0.07180202,3482.1,3481.2,7.29]
[1719858427935,0.07180202,3482.1,3481.2,10.29]
[1719858428147,0.07180202,3482.1,3481.2,7.29]
[1719858428385,2.4215,3481.9,3481.2,7.29]
[1719858428701,0.07181035,3481.8,3481.2,7.29]
[1719858428845,0.1076287,3481.8,3480.7,3.0]
[1719858429050,0.1076287,3481.8,3480.3,7.29]
[1719858429051,1.714,3481.5,3480.3,7.29]
[1719858429244,2.4215,3481.6,3480.0,0.1204875]
[1719858429245,1.714,3481.1,3480.0,0.1204875]
[1719858429472,0.0718359,3481.0,3480.0,0.1204875]
[1719858429687,0.55,3480.9,3480.0,0.1204875]
[1719858429886,0.07183564,3480.8,3480.0,0.1204875]
[1719858430048,2.42123564,3480.7,3480.0,0.1204875]
[1719858430249,2.45685939,3480.7,3480.0,0.1204875]
[1719858431051,2.45685939,3480.7,3480.0,0.43253625]
[1719858431784,2.45685939,3480.7,3480.0,3.1204875]
[1719858431953,2.45685939,3480.7,3480.1,3.0]
[1719858432155,2.45685939,3480.7,3480.0,0.1204875]
[1719858432358,1.714,3480.6,3480.0,0.1204875]
[1719858432564,0.10590957,3480.5,3480.0,0.1204875]
[1719858432984,0.03406782,3480.5,3480.0,0.1204875]
[1719858433640,4.1903,3480.4,3480.0,0.1204875]
[1719858433845,0.07184693,3480.3,3480.0,0.1204875]
[1719858434127,0.03406038,3480.4,3480.1,3.0]
[1719858434422,0.07183606,3481.2,3480.0,0.1204875]
[1719858434423,2.435,3482.1,3480.7,3.0]
[1719858434580,2.435,3482.1,3480.8,2.87289]
[1719858434787,0.03178038,3482.0,3480.8,2.87289]
[1719858435018,2.435,3482.1,3480.9,3.0]
[1719858435184,2.6785,3482.1,3480.9,4.122359]
[1719858435715,2.6785,3482.1,3480.9,3.0]
[1719858435916,2.6785,3482.1,3480.8,3.0]
[1719858436220,0.03177883,3482.0,3480.8,3.0]
[1719858436517,0.07181892,3481.9,3480.4,3.0]
[1719858436831,0.0319069,3481.8,3480.4,0.02870837]
[1719858437027,0.07182201,3481.7,3480.5,1.03187084]
[1719858437180,0.55,3481.6,3480.5,1.03187084]
[1719858437384,0.55,3481.6,3480.5,4.03187084]
[1719858437385,0.10373367,3481.5,3480.5,4.03187084]
[1719858437581,0.03191166,3481.5,3480.9,3.0]
[1719858437824,0.03191166,3481.5,3481.0,0.02869091]
[1719858437983,2.6785,3482.1,3481.0,0.02869091]
[1719858437984,0.07181059,3482.0,3481.0,0.02869091]
[1719858438185,0.0319231,3481.9,3480.9,6.0]
[1719858438381,0.07180677,3481.8,3480.9,3.0]
[1719858438594,0.07181456,3481.7,3480.9,3.0]
[1719858439543,0.07181455,3482.0,3480.6,3.0]
[1719858439711,0.07181455,3482.0,3480.6,3.69050108]
[1719858440031,0.03210382,3481.9,3480.6,3.69050108]
[1719858440232,0.0718193,3481.8,3480.6,3.0]
[1719858440385,0.07182048,3481.7,3480.2,10.29]
[1719858440603,0.07182048,3481.7,3480.2,7.29]
[1719858440808,0.03210652,3481.6,3480.2,7.29]
[1719858441013,0.07182201,3481.5,3480.2,7.29]
[1719858441217,0.07182201,3481.5,3480.2,1.32841175]
[1719858441430,0.07182201,3481.5,3480.1,3.0]
[1719858441706,2.53068082,3481.4,3480.1,3.0]
[1719858441901,2.53068082,3481.4,3480.2,3.0]
[1719858441902,0.07182753,3481.3,3480.2,3.0]
[1719858442145,0.07182752,3481.2,3480.2,3.0]
[1719858442436,0.33207835,3481.2,3480.2,3.0]
[1719858442823,0.03204977,3481.1,3480.1,3.0]
[1719858443022,0.1038773,3481.1,3480.1,3.0]
[1719858444398,2.44322751,3481.0,3480.0,0.1204875]
[1719858444544,2.940702,3481.0,3480.0,0.1204875]
[1719858444742,2.47518219,3481.0,3480.0,0.1204875]
[1719858445045,0.07182936,3480.9,3480.0,3.1204875]
[1719858445257,0.03189163,3480.9,3480.1,0.02872194]
[1719858445464,0.03189163,3480.9,3480.2,0.31492094]
[1719858445754,0.07182357,3481.2,3480.2,0.31492094]
[1719858445931,0.03187692,3480.8,3480.2,0.31492094]
[1719858446259,0.07182357,3481.2,3480.2,0.31492094]
[1719858446446,0.07182357,3481.2,3480.0,3.1204875]
[1719858446646,0.07182357,3481.2,3480.0,0.1204875]
[1719858446959,1.37584224,3481.0,3480.0,0.1204875]
[1719858447160,0.07183206,3480.9,3480.0,0.1204875]
[1719858447328,0.1036944,3480.9,3480.0,0.1204875]
[1719858447524,0.03186234,3480.9,3480.0,0.1204875]
[1719858447784,0.07183207,3480.9,3480.0,0.1204875]
[1719858447930,0.14477546,3480.8,3480.0,0.1204875]
[1719858448156,0.07183206,3480.7,3480.0,0.1204875]
[1719858448452,3.78185463,3480.7,3480.0,0.1204875]
[1719858448840,0.10369567,3480.6,3480.0,0.1204875]
[1719858449350,1.97707933,3480.6,3480.0,0.1204875]
[1719858449550,0.43111793,3480.5,3480.0,0.1204875]
[1719858449751,0.07183597,3480.4,3480.0,0.1204875]
[1719858449945,0.10369313,3480.4,3480.0,0.1204875]
[1719858450551,1.4796157,3480.4,3480.0,0.1204875]
[1719858450861,1.37623608,3480.2,3480.0,0.1204875]
[1719858451047,2.14331633,3480.1,3480.0,0.1204875]
[1719858451222,2.17517024,3480.1,3480.0,0.1204875]
[1719858452064,0.72708883,3480.1,3480.0,0.1204875]
[1719858452261,0.52934664,3480.1,3480.0,0.1204875]
[1719858452462,3.00214664,3480.1,3480.0,0.1204875]
[1719858452934,3.6240082,3480.1,3480.0,0.1204875]
[1719858453146,3.6240082,3480.1,3477.2,3.0]
[1719858453147,5.4988,3479.0,3477.2,3.0]
[1719858453344,1.37547597,3478.2,3477.2,3.0]
[1719858453537,2.4728,3478.0,3476.2,2.303]
[1719858453763,0.56980267,3477.9,3476.9,3.0]
[1719858453965,2.75062808,3477.6,3477.0,0.3]
[1719858454263,0.10343303,3477.5,3477.0,0.3]
[1719858454832,0.03153506,3477.5,3477.3,3.0]
[1719858455194,2.50433506,3477.5,3476.6,0.1204875]
[1719858455350,0.03153506,3477.5,3476.6,3.1204875]
[1719858455551,0.10342828,3477.5,3476.6,3.1204875]
[1719858456044,0.10342828,3477.5,3476.6,0.1204875]
[1719858457293,0.10342828,3477.5,3476.6,3.14939667]
[1719858458375,0.10342828,3477.5,3476.6,3.1204875]
[1719858458596,0.2513026,3477.5,3476.6,3.1204875]
[1719858458774,0.2513026,3477.5,3476.6,3.14939643]
[1719858458775,0.03153506,3477.5,3476.6,3.14939643]
[1719858458983,0.03153506,3477.5,3476.9,3.0]
[1719858459139,0.03153506,3477.5,3477.0,3.02887062]
[1719858459333,1.3753149,3477.6,3477.0,5.90485062]
[1719858459557,1.3753149,3477.6,3477.3,3.0]
[1719858460207,0.07188674,3478.4,3477.3,3.0]
[1719858460556,0.03093934,3478.3,3477.4,5.90454026]
[1719858460855,0.07188121,3478.6,3477.5,2.87556]
[1719858460856,0.03093261,3478.2,3477.5,2.87556]
[1719858461097,0.03093261,3478.2,3477.6,0.0288454]
[1719858461310,1.44767402,3479.1,3477.7,0.59044054]
[1719858461594,1.44767402,3479.1,3477.8,0.02883917]
[1719858461595,0.03104685,3479.0,3477.8,0.02883917]
[1719858461897,0.1029194,3479.0,3477.7,9.46589054]
[1719858462193,0.07187255,3479.0,3477.8,0.57120109]
[1719858462555,0.07187255,3479.0,3477.8,3.44655109]
[1719858462763,0.07186981,3479.1,3477.9,2.87529]
[1719858465216,0.07186981,3479.1,3478.0,2.8752]
[1719858465364,0.07186981,3479.1,3478.1,2.87512]
[1719858465565,0.07186734,3479.4,3478.2,0.287512]
[1719858466177,0.07186734,3479.4,3477.8,0.57120109]
[1719858466378,0.03123395,3479.3,3478.0,2.8752]
[1719858466604,0.07187056,3479.2,3477.8,0.57120109]
[1719858466912,0.07187056,3479.2,3477.9,2.87524]
[1719858467124,0.07187056,3479.2,3478.0,3.0]
[1719858467272,0.21660008,3479.2,3478.0,4.17810406]
[1719858467473,0.21660008,3479.2,3478.0,7.05329406]
[1719858467918,2.3973,3479.1,3478.0,4.17810406]
[1719858468072,0.07186968,3479.0,3478.0,1.17810406]
[1719858468273,0.10315435,3479.0,3478.0,1.17810406]
[1719858469132,0.36767274,3479.0,3478.0,1.17810406]
[1719858469297,0.33638807,3479.0,3478.0,1.17810406]
[1719858469496,0.33638807,3479.0,3477.3,2.87576]
[1719858469497,0.10315326,3478.9,3477.3,2.87576]
[1719858469797,1.87340278,3478.8,3477.7,3.0]
[1719858469995,0.6009283,3478.7,3477.7,3.0]
[1719858470198,0.10315788,3478.7,3477.7,3.0]
[1719858470414,0.14788153,3478.6,3477.7,3.0]
[1719858470614,0.07187833,3478.5,3477.7,3.0]
[1719858472151,0.07187833,3478.5,3477.6,3.0]
[1719858472449,0.07187833,3478.5,3477.4,3.0]
[1719858472996,0.07187833,3478.5,3477.4,5.8757]
[1719858473304,0.23139249,3478.5,3477.4,5.8757]
[1719858473932,0.07187833,3478.5,3477.4,5.8757]
[1719858474335,1.44726006,3478.7,3477.4,5.8757]
[1719858474650,0.49775169,3478.6,3477.4,5.8757]
[1719858474949,0.07187829,3478.5,3477.4,5.8757]
[1719858475423,0.07187829,3478.5,3477.5,2.87562]
[1719858475629,0.07187829,3478.5,3477.6,3.887562]
[1719858476853,1.37532297,3478.6,3477.6,3.887562]
[1719858476854,1.37532297,3478.6,3477.7,5.87539]
[1719858477149,0.07187062,3478.5,3477.6,3.0]
[1719858477295,0.56957819,3478.5,3477.4,3.0]
[1719858477499,0.22472265,3478.4,3477.4,5.87565]
[1719858477728,0.19449012,3478.4,3477.4,5.87565]
[1719858477925,0.07187829,3478.3,3477.4,5.87565]
[1719858478308,0.07187829,3478.4,3477.4,5.87565]
[1719858478618,1.37536758,3478.5,3477.4,5.87565]
[1719858478931,0.59985725,3478.4,3477.4,7.050796]
[1719858479229,1.97522483,3478.4,3477.4,7.050796]
[1719858479434,0.56963027,3478.3,3477.4,7.050796]
[1719858479631,1.44724589,3478.3,3477.4,7.050796]
[1719858480118,1.37536758,3478.4,3477.4,7.050796]
[1719858480327,0.07187832,3478.3,3477.5,1.16459969]
[1719858480628,0.49774441,3478.2,3477.7,3.0]
[1719858480930,1.37542956,3478.4,3477.7,3.0]
[1719858481135,0.49772154,3478.3,3477.7,3.0]
[1719858481337,0.03023314,3478.3,3477.7,3.0]
[1719858481513,0.49772177,3478.2,3477.7,4.175146]
[1719858481708,1.40564436,3478.3,3477.7,4.175146]
[1719858481709,1.37541122,3478.3,3477.7,4.175146]
[1719858482401,1.37541122,3478.3,3477.7,7.050606]
[1719858483134,1.8731204,3478.2,3477.7,4.175146]
[1719858483310,1.37541122,3478.2,3477.7,4.175146]
[1719858483524,1.37541122,3478.3,3477.7,3.0]
[1719858483725,0.49771755,3478.2,3477.7,3.0]
[1719858486950,1.37552871,3478.2,3477.8,0.8751]
[1719858487733,1.37552871,3478.2,3477.7,5.87546]
[1719858488139,1.37552871,3478.2,3478.1,3.0]
[1719858488526,0.52695526,3478.2,3478.1,3.0]
[1719858488728,1.40507985,3478.2,3478.1,3.0]
[1719858489212,1.87357523,3478.2,3478.1,3.0]
[1719858489419,1.87357523,3478.2,3478.1,3.875064]
[1719858490034,0.07186848,3479.5,3478.1,6.750194]
[1719858490244,0.07186848,3479.5,3478.1,5.87513]
[1719858490245,1.37587324,3478.2,3478.1,5.87513]
[1719858490735,1.87355949,3478.2,3478.1,5.87513]
[1719858490940,0.49768625,3478.2,3478.1,5.87513]
[1719858491754,1.37587324,3478.3,3478.2,2.87505]
[1719858492046,0.0718652,3479.5,3478.1,5.87513]
[1719858492047,1.37587324,3478.5,3478.3,2.87496]
[1719858492343,1.37587324,3478.7,3478.3,2.87496]
[1719858492951,1.37587324,3478.7,3478.6,3.0]
[1719858493154,0.07186434,3479.1,3478.6,3.0]
[1719858493375,1.87366415,3478.7,3478.6,3.0]
[1719858493570,1.3760442,3478.8,3478.6,3.0]
[1719858494441,1.3760442,3478.9,3478.6,3.0]
[1719858494642,1.90296339,3478.8,3478.6,3.0]
[1719858494845,1.3760442,3478.8,3478.6,3.0]
[1719858495083,1.3760442,3478.9,3478.6,3.0]
[1719858495365,0.49761421,3479.0,3478.6,3.0]